[Event "Titled Tuesday Blitz September 21 2021"]
[White "Pasti, Aron"]
[Black "Tristan, Leonardo"]
[WhiteFideId "785857"]
[BlackFideId "113816"]
[WhiteElo "2080"]
[BlackElo "2404"]
[Result "0-1"]
[Round "01"]
[TimeControl "180+1"]
[Date "2021.09.21"]
[WhiteClock "0:00:03"]
[BlackClock "0:00:39"]

1. e4 {[%clk 0:02:38]}  d5 {[%clk 0:02:59]} 2. exd5 {[%clk 0:02:38]}  Qxd5 {[%clk 0:03:00]} 3. Nc3 {[%clk 0:02:38]}  Qa5 {[%clk 0:03:00]} 4. Nf3 {[%clk 0:02:35]}  Nf6 {[%clk 0:03:00]} 5. Bc4 {[%clk 0:02:35]}  Nc6 {[%clk 0:02:59]} 6. d3 {[%clk 0:02:31]}  Bg4 {[%clk 0:02:56]} 7. h3 {[%clk 0:02:26]}  Qh5 {[%clk 0:02:55]} 8. Bf4 {[%clk 0:02:06]}  Bxf3 {[%clk 0:02:54]} 9. Qxf3 {[%clk 0:01:58]}  Qxf3 {[%clk 0:02:53]} 10. gxf3 {[%clk 0:01:59]}  e5 {[%clk 0:02:38]} 11. Be3 {[%clk 0:01:55]}  Nd4 {[%clk 0:02:16]} 12. O-O-O {[%clk 0:01:42]}  Nxf3 {[%clk 0:02:02]} 13. Nd5 {[%clk 0:01:42]}  Bd6 {[%clk 0:01:53]} 14. Nxf6+ {[%clk 0:01:42]}  gxf6 {[%clk 0:01:54]} 15. Bd5 {[%clk 0:01:42]}  Nh4 {[%clk 0:01:43]} 16. Bxb7 {[%clk 0:01:40]}  Rb8 {[%clk 0:01:43]} 17. Be4 {[%clk 0:01:38]}  a5 {[%clk 0:01:39]} 18. Rdg1 {[%clk 0:01:37]}  f5 {[%clk 0:01:33]} 19. Bc6+ {[%clk 0:01:37]}  Kd8 {[%clk 0:01:31]} 20. Rg7 {[%clk 0:01:21]}  f4 {[%clk 0:01:30]} 21. Ba7 {[%clk 0:01:21]}  Nf5 {[%clk 0:01:08]} 22. Rxf7 {[%clk 0:01:21]}  Ne7 {[%clk 0:01:08]} 23. Be4 {[%clk 0:00:34]}  Ke8 {[%clk 0:01:08]} 24. Rg7 {[%clk 0:00:27]}  Kf8 {[%clk 0:01:07]} 25. Rhg1 {[%clk 0:00:26]}  Rb4 {[%clk 0:00:54]} 26. c3 {[%clk 0:00:24]}  Rxe4 {[%clk 0:00:47]} 27. dxe4 {[%clk 0:00:24]}  Ng6 {[%clk 0:00:48]} 28. Rd7 {[%clk 0:00:15]}  Ke8 {[%clk 0:00:48]} 29. Rg7 {[%clk 0:00:10]}  Kf8 {[%clk 0:00:49]} 30. R7xg6 {[%clk 0:00:06]}  hxg6 {[%clk 0:00:49]} 31. Rxg6 {[%clk 0:00:07]}  Rxh3 {[%clk 0:00:48]} 32. Kd2 {[%clk 0:00:06]}  Rh1 {[%clk 0:00:46]} 33. Rf6+ {[%clk 0:00:03]}  Ke7 {[%clk 0:00:46]} 34. Rg6 {[%clk 0:00:03]}  Rh8 {[%clk 0:00:41]} 35. Ke2 {[%clk 0:00:03]}  Ra8 {[%clk 0:00:41]} 36. Bc5 {[%clk 0:00:02]}  Bxc5 {[%clk 0:00:40]} 37. Rg7+ {[%clk 0:00:02]}  Kd6 {[%clk 0:00:40]} 38. Rg6+ {[%clk 0:00:02]}  Kd7 {[%clk 0:00:41]} 39. Rg7+ {[%clk 0:00:03]}  Kc6 {[%clk 0:00:41]} 40. Rg6+ {[%clk 0:00:03]}  Bd6 {[%clk 0:00:42]} 41. b3 {[%clk 0:00:03]}  Rh8 {[%clk 0:00:39]} 0-1


[Site "https://www.chess.com"]

[Event "Titled Tuesday Blitz September 21 2021"]
[White "Popadic, Dragan"]
[Black "Leitao, Rafael"]
[WhiteFideId "913650"]
[BlackFideId "2101246"]
[WhiteElo "2207"]
[BlackElo "2609"]
[Result "0-1"]
[Round "01"]
[TimeControl "180+1"]
[Date "2021.09.21"]
[WhiteClock "0:01:06"]
[BlackClock "0:01:16"]

1. e4 {[%clk 0:03:00]}  e5 {[%clk 0:02:55]} 2. d4 {[%clk 0:03:00]}  exd4 {[%clk 0:02:49]} 3. Qxd4 {[%clk 0:02:59]}  Nc6 {[%clk 0:02:42]} 4. Qe3 {[%clk 0:02:57]}  Nf6 {[%clk 0:02:41]} 5. Nc3 {[%clk 0:02:57]}  Bb4 {[%clk 0:02:40]} 6. Bd2 {[%clk 0:02:57]}  O-O {[%clk 0:02:41]} 7. O-O-O {[%clk 0:02:56]}  Re8 {[%clk 0:02:41]} 8. Qg3 {[%clk 0:02:56]}  Nxe4 {[%clk 0:02:36]} 9. Nxe4 {[%clk 0:02:54]}  Rxe4 {[%clk 0:02:36]} 10. c3 {[%clk 0:02:54]}  Bd6 {[%clk 0:02:25]} 11. f4 {[%clk 0:02:53]}  Bf8 {[%clk 0:02:11]} 12. Bd3 {[%clk 0:02:52]}  Ra4 {[%clk 0:02:10]} 13. Nh3 {[%clk 0:02:44]}  h6 {[%clk 0:02:01]} 14. Kb1 {[%clk 0:02:39]}  d5 {[%clk 0:01:59]} 15. Bc2 {[%clk 0:02:36]}  Ra6 {[%clk 0:01:57]} 16. f5 {[%clk 0:02:21]}  Qf6 {[%clk 0:01:50]} 17. Nf4 {[%clk 0:02:15]}  Bxf5 {[%clk 0:01:47]} 18. Bxf5 {[%clk 0:02:00]}  Qxf5+ {[%clk 0:01:46]} 19. Ka1 {[%clk 0:02:01]}  Na5 {[%clk 0:01:40]} 20. Nd3 {[%clk 0:01:47]}  Nb3+ {[%clk 0:01:34]} 21. Kb1 {[%clk 0:01:46]}  Nc5 {[%clk 0:01:33]} 22. Bc1 {[%clk 0:01:30]}  Rg6 {[%clk 0:01:29]} 23. Qf3 {[%clk 0:01:21]}  Qxf3 {[%clk 0:01:29]} 24. gxf3 {[%clk 0:01:20]}  Nxd3 {[%clk 0:01:29]} 25. Rxd3 {[%clk 0:01:20]}  c6 {[%clk 0:01:29]} 26. Re1 {[%clk 0:01:19]}  Re6 {[%clk 0:01:29]} 27. Rg1 {[%clk 0:01:15]}  Rae8 {[%clk 0:01:27]} 28. Rd2 {[%clk 0:01:14]}  Re2 {[%clk 0:01:27]} 29. Kc2 {[%clk 0:01:13]}  Rxd2+ {[%clk 0:01:26]} 30. Kxd2 {[%clk 0:01:12]}  Bd6 {[%clk 0:01:26]} 31. h3 {[%clk 0:01:08]}  Bf4+ {[%clk 0:01:25]} 32. Kd3 {[%clk 0:01:08]}  Bxc1 {[%clk 0:01:25]} 33. Rxc1 {[%clk 0:01:08]}  Re5 {[%clk 0:01:20]} 34. Rg1 {[%clk 0:01:06]}  Rg5 {[%clk 0:01:19]} 35. Re1 {[%clk 0:01:06]}  Kf8 {[%clk 0:01:16]} 0-1


[Site "https://www.chess.com"]

[Event "Titled Tuesday Blitz September 21 2021"]
[White "Pressman, Leif"]
[Black "Sarana, Alexey"]
[WhiteFideId "2023547"]
[BlackFideId "24133795"]
[WhiteElo "2236"]
[BlackElo "2671"]
[Result "0-1"]
[Round "01"]
[TimeControl "180+1"]
[Date "2021.09.21"]
[WhiteClock "0:00:02"]
[BlackClock "0:01:02"]

1. e4 {[%clk 0:02:57]}  c5 {[%clk 0:02:54]} 2. Nf3 {[%clk 0:02:56]}  Nc6 {[%clk 0:02:54]} 3. d4 {[%clk 0:02:57]}  cxd4 {[%clk 0:02:55]} 4. Nxd4 {[%clk 0:02:57]}  Nf6 {[%clk 0:02:56]} 5. Nc3 {[%clk 0:02:58]}  e5 {[%clk 0:02:56]} 6. Ndb5 {[%clk 0:02:59]}  d6 {[%clk 0:02:56]} 7. Bg5 {[%clk 0:02:57]}  a6 {[%clk 0:02:56]} 8. Na3 {[%clk 0:02:58]}  b5 {[%clk 0:02:57]} 9. Nd5 {[%clk 0:02:47]}  Be7 {[%clk 0:02:55]} 10. Bxf6 {[%clk 0:02:43]}  Bxf6 {[%clk 0:02:56]} 11. c3 {[%clk 0:02:39]}  Ne7 {[%clk 0:02:50]} 12. Nxf6+ {[%clk 0:01:49]}  gxf6 {[%clk 0:02:51]} 13. Bd3 {[%clk 0:01:39]}  Bb7 {[%clk 0:02:50]} 14. O-O {[%clk 0:01:27]}  Qd7 {[%clk 0:02:42]} 15. Nc2 {[%clk 0:01:21]}  d5 {[%clk 0:02:40]} 16. exd5 {[%clk 0:01:10]}  f5 {[%clk 0:02:40]} 17. f4 {[%clk 0:01:02]}  Qxd5 {[%clk 0:02:36]} 18. Rf2 {[%clk 0:00:42]}  Rg8 {[%clk 0:02:34]} 19. Bf1 {[%clk 0:00:42]}  exf4 {[%clk 0:02:11]} 20. Qxd5 {[%clk 0:00:30]}  Nxd5 {[%clk 0:02:12]} 21. Re1+ {[%clk 0:00:28]}  Kf8 {[%clk 0:02:10]} 22. h3 {[%clk 0:00:15]}  Rd8 {[%clk 0:01:54]} 23. Kh2 {[%clk 0:00:14]}  Rg3 {[%clk 0:01:51]} 24. Rxf4 {[%clk 0:00:12]}  Nxf4 {[%clk 0:01:49]} 25. Kxg3 {[%clk 0:00:13]}  Nxg2 {[%clk 0:01:49]} 26. Bxg2 {[%clk 0:00:11]}  Bxg2 {[%clk 0:01:49]} 27. Kxg2 {[%clk 0:00:07]}  Rd2+ {[%clk 0:01:49]} 28. Kf3 {[%clk 0:00:07]}  Rxc2 {[%clk 0:01:49]} 29. Re2 {[%clk 0:00:05]}  Rc1 {[%clk 0:01:13]} 30. Kf4 {[%clk 0:00:06]}  Rf1+ {[%clk 0:01:13]} 31. Kg5 {[%clk 0:00:05]}  Kg7 {[%clk 0:01:13]} 32. b3 {[%clk 0:00:02]}  h6+ {[%clk 0:01:12]} 33. Kh4 {[%clk 0:00:02]}  Rf3 {[%clk 0:01:12]} 34. Rc2 {[%clk 0:00:01]}  a5 {[%clk 0:01:02]} 35. c4 {[%clk 0:00:02]}  b4 {[%clk 0:01:03]} 36. c5 {[%clk 0:00:02]}  Rc3 {[%clk 0:01:03]} 37. Rg2+ {[%clk 0:00:02]}  Kf6 {[%clk 0:01:02]} 38. Kh5 {[%clk 0:00:02]}  Rxh3# {[%clk 0:01:02]} 0-1


[Site "https://www.chess.com"]

[Event "Titled Tuesday Blitz September 21 2021"]
[White "Sahil, Tickoo"]
[Black "Laurusas, Tomas"]
[WhiteFideId "5019710"]
[BlackFideId "12803731"]
[WhiteElo "2099"]
[BlackElo "2573"]
[Result "0-1"]
[Round "01"]
[TimeControl "180+1"]
[Date "2021.09.21"]
[WhiteClock "0:00:04"]
[BlackClock "0:00:29"]

1. b3 {[%clk 0:02:59]}  d5 {[%clk 0:02:55]} 2. Bb2 {[%clk 0:02:58]}  Bg4 {[%clk 0:02:55]} 3. d3 {[%clk 0:02:52]}  Nd7 {[%clk 0:02:42]} 4. Nd2 {[%clk 0:02:51]}  e5 {[%clk 0:02:39]} 5. Ngf3 {[%clk 0:02:49]}  Bd6 {[%clk 0:02:37]} 6. g3 {[%clk 0:02:49]}  Ngf6 {[%clk 0:02:36]} 7. Bg2 {[%clk 0:02:48]}  O-O {[%clk 0:02:36]} 8. O-O {[%clk 0:02:47]}  Re8 {[%clk 0:02:34]} 9. e4 {[%clk 0:02:46]}  c6 {[%clk 0:02:33]} 10. h3 {[%clk 0:02:44]}  Bh5 {[%clk 0:02:32]} 11. Re1 {[%clk 0:02:43]}  d4 {[%clk 0:02:28]} 12. a4 {[%clk 0:02:41]}  Bb4 {[%clk 0:02:22]} 13. Rf1 {[%clk 0:02:27]}  b5 {[%clk 0:02:20]} 14. g4 {[%clk 0:02:04]}  Bg6 {[%clk 0:02:17]} 15. Qe2 {[%clk 0:01:59]}  a5 {[%clk 0:02:11]} 16. Nh2 {[%clk 0:01:37]}  Nf8 {[%clk 0:01:58]} 17. Ndf3 {[%clk 0:01:23]}  Qc7 {[%clk 0:01:48]} 18. Nh4 {[%clk 0:01:22]}  Ne6 {[%clk 0:01:47]} 19. Nf5 {[%clk 0:01:21]}  Nd7 {[%clk 0:01:41]} 20. Qf3 {[%clk 0:01:22]}  bxa4 {[%clk 0:01:38]} 21. Rxa4 {[%clk 0:01:19]}  Ndc5 {[%clk 0:01:38]} 22. Raa1 {[%clk 0:01:18]}  a4 {[%clk 0:01:39]} 23. bxa4 {[%clk 0:01:09]}  Nxa4 {[%clk 0:01:38]} 24. Bc1 {[%clk 0:01:08]}  Bc3 {[%clk 0:01:35]} 25. Rb1 {[%clk 0:01:04]}  Reb8 {[%clk 0:01:33]} 26. Rxb8+ {[%clk 0:01:02]}  Rxb8 {[%clk 0:01:34]} 27. h4 {[%clk 0:01:02]}  h6 {[%clk 0:01:28]} 28. g5 {[%clk 0:00:54]}  hxg5 {[%clk 0:01:24]} 29. hxg5 {[%clk 0:00:52]}  Rb1 {[%clk 0:01:23]} 30. Ng4 {[%clk 0:00:48]}  Bb2 {[%clk 0:01:16]} 31. Bd2 {[%clk 0:00:37]}  Rxf1+ {[%clk 0:01:17]} 32. Bxf1 {[%clk 0:00:37]}  Bc3 {[%clk 0:01:17]} 33. Bc1 {[%clk 0:00:37]}  Bb2 {[%clk 0:01:13]} 34. Bd2 {[%clk 0:00:36]}  Nc3 {[%clk 0:01:13]} 35. Qh3 {[%clk 0:00:32]}  Nb1 {[%clk 0:01:08]} 36. Be1 {[%clk 0:00:24]}  Nxg5 {[%clk 0:01:04]} 37. Qg2 {[%clk 0:00:18]}  Ne6 {[%clk 0:01:01]} 38. Be2 {[%clk 0:00:14]}  Bc3 {[%clk 0:01:01]} 39. Bxc3 {[%clk 0:00:14]}  Nxc3 {[%clk 0:01:01]} 40. Bf3 {[%clk 0:00:15]}  Nf4 {[%clk 0:01:01]} 41. Qg3 {[%clk 0:00:15]}  Kf8 {[%clk 0:00:56]} 42. Qh4 {[%clk 0:00:12]}  Bxf5 {[%clk 0:00:55]} 43. Qh8+ {[%clk 0:00:11]}  Ke7 {[%clk 0:00:55]} 44. exf5 {[%clk 0:00:11]}  g6 {[%clk 0:00:38]} 45. fxg6 {[%clk 0:00:10]}  Nxg6 {[%clk 0:00:38]} 46. Qf6+ {[%clk 0:00:10]}  Ke8 {[%clk 0:00:38]} 47. Nh6 {[%clk 0:00:09]}  Nd5 {[%clk 0:00:35]} 48. Bxd5 {[%clk 0:00:09]}  cxd5 {[%clk 0:00:36]} 49. Qg7 {[%clk 0:00:09]}  Qe7 {[%clk 0:00:35]} 50. Qg8+ {[%clk 0:00:08]}  Qf8 {[%clk 0:00:35]} 51. Qh7 {[%clk 0:00:08]}  Ke7 {[%clk 0:00:31]} 52. Kf1 {[%clk 0:00:08]}  Ke6 {[%clk 0:00:31]} 53. Ng4 {[%clk 0:00:08]}  Qh8 {[%clk 0:00:29]} 54. Qxh8 {[%clk 0:00:07]}  Nxh8 {[%clk 0:00:30]} 55. Ke2 {[%clk 0:00:07]}  Ng6 {[%clk 0:00:30]} 56. Nh2 {[%clk 0:00:07]}  e4 {[%clk 0:00:28]} 57. Ng4 {[%clk 0:00:07]}  f5 {[%clk 0:00:27]} 58. Nh2 {[%clk 0:00:06]}  Nf4+ {[%clk 0:00:28]} 59. Kd2 {[%clk 0:00:06]}  Kf6 {[%clk 0:00:28]} 60. Nf1 {[%clk 0:00:06]}  Kg5 {[%clk 0:00:29]} 61. Ng3 {[%clk 0:00:06]}  Kg4 {[%clk 0:00:28]} 62. Nf1 {[%clk 0:00:05]}  Kf3 {[%clk 0:00:28]} 63. Ng3 {[%clk 0:00:04]}  e3+ {[%clk 0:00:28]} 64. fxe3 {[%clk 0:00:05]}  Kxg3 {[%clk 0:00:28]} 65. exf4 {[%clk 0:00:03]}  Kxf4 {[%clk 0:00:29]} 66. c3 {[%clk 0:00:03]}  dxc3+ {[%clk 0:00:28]} 67. Kxc3 {[%clk 0:00:04]}  Ke3 {[%clk 0:00:29]} 0-1


[Site "https://www.chess.com"]

[Event "Titled Tuesday Blitz September 21 2021"]
[White "Salgado Lopez, Ivan"]
[Black "Belenkaya, Dina"]
[WhiteFideId "2257327"]
[BlackFideId "24142654"]
[WhiteElo "2605"]
[BlackElo "2247"]
[Result "1-0"]
[Round "01"]
[TimeControl "180+1"]
[Date "2021.09.21"]
[WhiteClock "0:01:11"]
[BlackClock "0:00:03"]

1. g3 {[%clk 0:03:00]}  d5 {[%clk 0:02:55]} 2. Bg2 {[%clk 0:03:00]}  c6 {[%clk 0:02:44]} 3. c4 {[%clk 0:02:59]}  Nf6 {[%clk 0:02:26]} 4. Nf3 {[%clk 0:02:53]}  Bg4 {[%clk 0:02:22]} 5. cxd5 {[%clk 0:02:43]}  cxd5 {[%clk 0:02:23]} 6. Ne5 {[%clk 0:02:43]}  Be6 {[%clk 0:02:14]} 7. d4 {[%clk 0:02:39]}  Nbd7 {[%clk 0:02:10]} 8. Nc3 {[%clk 0:02:38]}  g6 {[%clk 0:01:53]} 9. Nd3 {[%clk 0:02:36]}  Nb6 {[%clk 0:01:50]} 10. Nf4 {[%clk 0:02:33]}  Qd7 {[%clk 0:01:48]} 11. a4 {[%clk 0:02:22]}  Bg7 {[%clk 0:01:29]} 12. a5 {[%clk 0:02:22]}  Nc4 {[%clk 0:01:29]} 13. Nxe6 {[%clk 0:02:21]}  Qxe6 {[%clk 0:01:28]} 14. Qa4+ {[%clk 0:02:20]}  Qd7 {[%clk 0:01:19]} 15. Nxd5 {[%clk 0:02:13]}  Nxd5 {[%clk 0:01:12]} 16. Bxd5 {[%clk 0:02:08]}  Nd6 {[%clk 0:01:01]} 17. O-O {[%clk 0:02:01]}  e6 {[%clk 0:00:56]} 18. Bf3 {[%clk 0:01:59]}  Qxa4 {[%clk 0:00:53]} 19. Rxa4 {[%clk 0:02:00]}  Rc8 {[%clk 0:00:53]} 20. Bf4 {[%clk 0:01:59]}  Kd7 {[%clk 0:00:35]} 21. Rb4 {[%clk 0:01:57]}  Rc2 {[%clk 0:00:29]} 22. Bxd6 {[%clk 0:01:45]}  Kxd6 {[%clk 0:00:30]} 23. Rxb7 {[%clk 0:01:45]}  Rc7 {[%clk 0:00:19]} 24. e3 {[%clk 0:01:35]}  Rhc8 {[%clk 0:00:18]} 25. Rb1 {[%clk 0:01:22]}  Bf8 {[%clk 0:00:18]} 26. b4 {[%clk 0:01:19]}  Rc1+ {[%clk 0:00:17]} 27. Rxc1 {[%clk 0:01:18]}  Rxc1+ {[%clk 0:00:18]} 28. Kg2 {[%clk 0:01:19]}  Rc7 {[%clk 0:00:18]} 29. Rb8 {[%clk 0:01:18]}  Be7 {[%clk 0:00:18]} 30. b5 {[%clk 0:01:19]}  Rc2 {[%clk 0:00:08]} 31. Rb7 {[%clk 0:01:16]}  Rc7 {[%clk 0:00:07]} 32. Rb8 {[%clk 0:01:16]}  Rc2 {[%clk 0:00:07]} 33. b6 {[%clk 0:01:15]}  axb6 {[%clk 0:00:07]} 34. Rxb6+ {[%clk 0:01:12]}  Kc7 {[%clk 0:00:06]} 35. Rb7+ {[%clk 0:01:12]}  Kd8 {[%clk 0:00:06]} 36. a6 {[%clk 0:01:11]}  Ra2 {[%clk 0:00:04]} 37. a7 {[%clk 0:01:12]}  Bd6 {[%clk 0:00:04]} 38. Rb8+ {[%clk 0:01:11]}  Ke7 {[%clk 0:00:03]} 39. a8=Q {[%clk 0:01:11]} 1-0


[Site "https://www.chess.com"]

[Event "Titled Tuesday Blitz September 21 2021"]
[White "Shipov, Sergei"]
[Black "Chernov, Mikhail"]
[WhiteFideId "4113624"]
[BlackFideId "24143170"]
[WhiteElo "2793"]
[BlackElo "2244"]
[Result "1-0"]
[Round "01"]
[TimeControl "180+1"]
[Date "2021.09.21"]
[WhiteClock "0:01:34"]
[BlackClock "0:00:18"]

1. d4 {[%clk 0:02:57]}  Nf6 {[%clk 0:02:52]} 2. c4 {[%clk 0:02:56]}  e6 {[%clk 0:02:48]} 3. Nc3 {[%clk 0:02:55]}  Bb4 {[%clk 0:02:47]} 4. e3 {[%clk 0:02:55]}  c5 {[%clk 0:02:47]} 5. Ne2 {[%clk 0:02:55]}  cxd4 {[%clk 0:02:41]} 6. exd4 {[%clk 0:02:56]}  d5 {[%clk 0:02:39]} 7. c5 {[%clk 0:02:55]}  O-O {[%clk 0:02:37]} 8. a3 {[%clk 0:02:54]}  Ba5 {[%clk 0:02:29]} 9. b4 {[%clk 0:02:51]}  Bc7 {[%clk 0:02:28]} 10. Nb5 {[%clk 0:02:48]}  Nc6 {[%clk 0:02:13]} 11. Bb2 {[%clk 0:02:30]}  Bb8 {[%clk 0:02:07]} 12. f3 {[%clk 0:02:21]}  a6 {[%clk 0:01:53]} 13. Nbc3 {[%clk 0:02:21]}  e5 {[%clk 0:01:54]} 14. Na4 {[%clk 0:02:13]}  exd4 {[%clk 0:01:15]} 15. Nb6 {[%clk 0:02:11]}  Ra7 {[%clk 0:01:13]} 16. Nxd4 {[%clk 0:02:10]}  Bc7 {[%clk 0:01:01]} 17. Be2 {[%clk 0:01:53]}  Bxb6 {[%clk 0:00:35]} 18. Nxc6 {[%clk 0:01:41]}  bxc6 {[%clk 0:00:32]} 19. cxb6 {[%clk 0:01:41]}  Re7 {[%clk 0:00:19]} 20. O-O {[%clk 0:01:40]}  Qxb6+ {[%clk 0:00:18]} 21. Bd4 {[%clk 0:01:40]}  Qc7 {[%clk 0:00:18]} 22. Bc5 {[%clk 0:01:40]}  Rfe8 {[%clk 0:00:18]} 23. Bxe7 {[%clk 0:01:40]}  Qxe7 {[%clk 0:00:19]} 24. Re1 {[%clk 0:01:38]}  Qe3+ {[%clk 0:00:17]} 25. Kh1 {[%clk 0:01:37]}  Nh5 {[%clk 0:00:18]} 26. Bf1 {[%clk 0:01:34]} 1-0


[Site "https://www.chess.com"]

[Event "Titled Tuesday Blitz September 21 2021"]
[White "Sjugirov, Sanan"]
[Black "Richter, Nils"]
[WhiteFideId "4189302"]
[BlackFideId "12990809"]
[WhiteElo "2654"]
[BlackElo "2289"]
[Result "1-0"]
[Round "01"]
[TimeControl "180+1"]
[Date "2021.09.21"]
[WhiteClock "0:00:04"]
[BlackClock "0:00:02"]

1. d4 {[%clk 0:02:59]}  Nf6 {[%clk 0:02:58]} 2. c4 {[%clk 0:02:59]}  c5 {[%clk 0:02:58]} 3. d5 {[%clk 0:02:58]}  b5 {[%clk 0:02:59]} 4. cxb5 {[%clk 0:02:58]}  a6 {[%clk 0:02:59]} 5. e3 {[%clk 0:02:59]}  g6 {[%clk 0:02:57]} 6. Nc3 {[%clk 0:02:58]}  Bg7 {[%clk 0:02:56]} 7. Nf3 {[%clk 0:02:57]}  d6 {[%clk 0:02:55]} 8. a4 {[%clk 0:02:54]}  O-O {[%clk 0:02:54]} 9. e4 {[%clk 0:02:44]}  Nbd7 {[%clk 0:02:49]} 10. Be2 {[%clk 0:02:38]}  axb5 {[%clk 0:02:38]} 11. Bxb5 {[%clk 0:02:38]}  Ba6 {[%clk 0:02:34]} 12. Bxa6 {[%clk 0:02:27]}  Rxa6 {[%clk 0:02:35]} 13. O-O {[%clk 0:02:27]}  Qb6 {[%clk 0:02:29]} 14. Qc2 {[%clk 0:02:12]}  Rfa8 {[%clk 0:02:17]} 15. h3 {[%clk 0:02:03]}  Ne8 {[%clk 0:02:06]} 16. Ra3 {[%clk 0:01:54]}  c4 {[%clk 0:01:50]} 17. Be3 {[%clk 0:01:49]}  Nc5 {[%clk 0:01:48]} 18. Nd4 {[%clk 0:01:10]}  Nc7 {[%clk 0:01:45]} 19. Nc6 {[%clk 0:01:06]}  Kf8 {[%clk 0:01:39]} 20. a5 {[%clk 0:00:56]}  Rxa5 {[%clk 0:01:24]} 21. Rxa5 {[%clk 0:00:55]}  Rxa5 {[%clk 0:01:25]} 22. Nxa5 {[%clk 0:00:55]}  Qxa5 {[%clk 0:01:26]} 23. Ne2 {[%clk 0:00:39]}  Qa4 {[%clk 0:01:16]} 24. Qxa4 {[%clk 0:00:35]}  Nxa4 {[%clk 0:01:17]} 25. Ra1 {[%clk 0:00:31]}  Nxb2 {[%clk 0:01:17]} 26. Ra7 {[%clk 0:00:30]}  Ne8 {[%clk 0:01:17]} 27. Ra8 {[%clk 0:00:28]}  Nd1 {[%clk 0:00:56]} 28. Bd4 {[%clk 0:00:23]}  Bxd4 {[%clk 0:00:36]} 29. Nxd4 {[%clk 0:00:24]}  Nc3 {[%clk 0:00:36]} 30. f3 {[%clk 0:00:22]}  f5 {[%clk 0:00:29]} 31. Ne6+ {[%clk 0:00:18]}  Kf7 {[%clk 0:00:28]} 32. Ng5+ {[%clk 0:00:18]}  Kf8 {[%clk 0:00:23]} 33. Nxh7+ {[%clk 0:00:18]}  Kf7 {[%clk 0:00:23]} 34. Ng5+ {[%clk 0:00:18]}  Kf6 {[%clk 0:00:22]} 35. Rxe8 {[%clk 0:00:14]}  Kxg5 {[%clk 0:00:21]} 36. Rxe7 {[%clk 0:00:13]}  fxe4 {[%clk 0:00:20]} 37. fxe4 {[%clk 0:00:14]}  Na2 {[%clk 0:00:15]} 38. e5 {[%clk 0:00:14]}  dxe5 {[%clk 0:00:14]} 39. d6 {[%clk 0:00:14]}  c3 {[%clk 0:00:13]} 40. Rc7 {[%clk 0:00:14]}  Kf6 {[%clk 0:00:12]} 41. Kf2 {[%clk 0:00:12]}  Ke6 {[%clk 0:00:12]} 42. d7 {[%clk 0:00:13]}  Ke7 {[%clk 0:00:13]} 43. Ke3 {[%clk 0:00:10]}  Nb4 {[%clk 0:00:12]} 44. Ke4 {[%clk 0:00:08]}  c2 {[%clk 0:00:12]} 45. h4 {[%clk 0:00:06]}  Kd8 {[%clk 0:00:11]} 46. Rc4 {[%clk 0:00:06]}  Kxd7 {[%clk 0:00:12]} 47. g4 {[%clk 0:00:06]}  Ke6 {[%clk 0:00:12]} 48. h5 {[%clk 0:00:05]}  gxh5 {[%clk 0:00:13]} 49. gxh5 {[%clk 0:00:06]}  Kf6 {[%clk 0:00:13]} 50. Ke3 {[%clk 0:00:05]}  Kg5 {[%clk 0:00:12]} 51. Kd2 {[%clk 0:00:05]}  Nd5 {[%clk 0:00:10]} 52. Rc5 {[%clk 0:00:06]}  Nf6 {[%clk 0:00:07]} 53. Rxe5+ {[%clk 0:00:05]}  Kh6 {[%clk 0:00:08]} 54. Re6 {[%clk 0:00:05]}  Kg5 {[%clk 0:00:08]} 55. h6 {[%clk 0:00:05]}  Nh7 {[%clk 0:00:09]} 56. Kxc2 {[%clk 0:00:05]}  Nf6 {[%clk 0:00:04]} 57. Kd3 {[%clk 0:00:05]}  Kg6 {[%clk 0:00:05]} 58. Kd4 {[%clk 0:00:05]}  Kf7 {[%clk 0:00:02]} 59. Ra6 {[%clk 0:00:05]}  Ng8 {[%clk 0:00:02]} 60. Ke5 {[%clk 0:00:04]}  Nxh6 {[%clk 0:00:02]} 61. Rxh6 {[%clk 0:00:04]} 1-0


[Site "https://www.chess.com"]

[Event "Titled Tuesday Blitz September 21 2021"]
[White "Solon, Nathan"]
[Black "Guzman Moneo, Alberto"]
[WhiteFideId "2017229"]
[BlackFideId "2209616"]
[WhiteElo "2686"]
[BlackElo "2157"]
[Result "1-0"]
[Round "01"]
[TimeControl "180+1"]
[Date "2021.09.21"]
[WhiteClock "0:00:17"]
[BlackClock "0:00:21"]

1. d4 {[%clk 0:02:26]}  Nf6 {[%clk 0:02:58]} 2. Nf3 {[%clk 0:02:25]}  c5 {[%clk 0:02:59]} 3. d5 {[%clk 0:02:25]}  b5 {[%clk 0:02:58]} 4. a4 {[%clk 0:02:20]}  b4 {[%clk 0:02:58]} 5. c4 {[%clk 0:02:19]}  d6 {[%clk 0:02:57]} 6. Qc2 {[%clk 0:02:15]}  e5 {[%clk 0:02:52]} 7. e4 {[%clk 0:02:11]}  g6 {[%clk 0:02:52]} 8. Bd3 {[%clk 0:02:07]}  Bg7 {[%clk 0:02:52]} 9. O-O {[%clk 0:02:07]}  O-O {[%clk 0:02:52]} 10. Nbd2 {[%clk 0:01:58]}  Nh5 {[%clk 0:02:47]} 11. g3 {[%clk 0:01:56]}  Bh3 {[%clk 0:02:45]} 12. Re1 {[%clk 0:01:56]}  Nd7 {[%clk 0:02:44]} 13. Nf1 {[%clk 0:01:45]}  h6 {[%clk 0:02:39]} 14. Ne3 {[%clk 0:01:38]}  a5 {[%clk 0:02:27]} 15. Bd2 {[%clk 0:01:28]}  Qe7 {[%clk 0:02:22]} 16. Kh1 {[%clk 0:01:24]}  Kh8 {[%clk 0:02:20]} 17. Ng1 {[%clk 0:01:24]}  f5 {[%clk 0:02:10]} 18. Nxh3 {[%clk 0:01:24]}  f4 {[%clk 0:02:10]} 19. Ng4 {[%clk 0:01:17]}  g5 {[%clk 0:02:06]} 20. Be2 {[%clk 0:01:10]}  Nhf6 {[%clk 0:02:05]} 21. Nxf6 {[%clk 0:01:09]}  Nxf6 {[%clk 0:02:06]} 22. f3 {[%clk 0:01:04]}  Rg8 {[%clk 0:01:59]} 23. Nf2 {[%clk 0:01:03]}  h5 {[%clk 0:01:59]} 24. Kg2 {[%clk 0:01:03]}  Bh6 {[%clk 0:01:58]} 25. Rh1 {[%clk 0:01:03]}  Rg6 {[%clk 0:01:58]} 26. Rag1 {[%clk 0:01:02]}  Rag8 {[%clk 0:01:58]} 27. Kf1 {[%clk 0:01:03]}  Kg7 {[%clk 0:01:57]} 28. h4 {[%clk 0:01:01]}  fxg3 {[%clk 0:01:52]} 29. Rxg3 {[%clk 0:01:02]}  gxh4 {[%clk 0:01:53]} 30. Rxg6+ {[%clk 0:01:02]}  Kxg6 {[%clk 0:01:52]} 31. Rg1+ {[%clk 0:01:01]}  Kh7 {[%clk 0:01:51]} 32. Bxh6 {[%clk 0:01:01]}  Rxg1+ {[%clk 0:01:49]} 33. Kxg1 {[%clk 0:01:02]}  Kxh6 {[%clk 0:01:49]} 34. Qd2+ {[%clk 0:01:02]}  Kg6 {[%clk 0:01:45]} 35. Nh3 {[%clk 0:01:02]}  Qd7 {[%clk 0:01:44]} 36. Qg5+ {[%clk 0:01:01]}  Kf7 {[%clk 0:01:44]} 37. Kg2 {[%clk 0:00:59]}  Qxa4 {[%clk 0:01:43]} 38. Qf5 {[%clk 0:00:51]}  Qc2 {[%clk 0:01:38]} 39. Kf2 {[%clk 0:00:49]}  Qxb2 {[%clk 0:01:34]} 40. Qe6+ {[%clk 0:00:47]}  Kg7 {[%clk 0:01:30]} 41. Qxd6 {[%clk 0:00:45]}  Qd4+ {[%clk 0:01:29]} 42. Kg2 {[%clk 0:00:44]}  b3 {[%clk 0:01:26]} 43. Ng5 {[%clk 0:00:38]}  Qd2 {[%clk 0:01:21]} 44. Ne6+ {[%clk 0:00:36]}  Kg6 {[%clk 0:01:17]} 45. Kf2 {[%clk 0:00:36]}  b2 {[%clk 0:01:15]} 46. Qe7 {[%clk 0:00:30]}  Qh6 {[%clk 0:01:05]} 47. Qb7 {[%clk 0:00:23]}  h3 {[%clk 0:00:49]} 48. Qxb2 {[%clk 0:00:23]}  h2 {[%clk 0:00:38]} 49. Kg2 {[%clk 0:00:24]}  Qe3 {[%clk 0:00:35]} 50. Kxh2 {[%clk 0:00:18]}  Qf2+ {[%clk 0:00:34]} 51. Kh1 {[%clk 0:00:17]}  a4 {[%clk 0:00:24]} 52. Qxe5 {[%clk 0:00:17]}  Qxe2 {[%clk 0:00:22]} 53. Nf4+ {[%clk 0:00:16]}  Kh6 {[%clk 0:00:21]} 54. Nxe2 {[%clk 0:00:17]}  a3 {[%clk 0:00:21]} 55. Qxf6+ {[%clk 0:00:17]} 1-0


[Site "https://www.chess.com"]